bitfinex/quotes_ETHUSD_20240701
["timestamp","ask_amount","ask_price","bid_price","bid_amount"]
[1719850203910,2.2584,3477.4,3476.3,2.87659]
[1719850204118,0.06261587,3477.3,3476.4,2.87653]
[1719850204315,0.02640986,3477.3,3476.3,2.87659]
[1719850204847,2.2584,3477.4,3476.3,2.87659]
[1719850205213,0.0626015,3477.3,3476.5,2.87639]
[1719850205410,0.0626015,3477.3,3476.3,2.87655]
[1719850205627,0.02640986,3477.3,3476.0,2.3592]
[1719850205825,0.02640986,3477.3,3476.0,2.87682]
[1719850206013,2.2881,3477.9,3476.2,2.87669]
[1719850206233,2.2881,3477.9,3475.8,2.437]
[1719850206234,2.2881,3477.7,3475.8,2.437]
[1719850206563,0.02640986,3477.8,3475.8,2.437]
[1719850206564,2.2881,3477.5,3476.4,2.87652]
[1719850206851,0.08900039,3477.4,3476.4,2.87652]
[1719850207213,0.08900039,3477.4,3476.2,5.75328]
[1719850207413,0.08900039,3477.4,3476.3,2.87659]
[1719850207614,0.02640986,3477.4,3476.3,2.87659]
[1719850208760,0.02640986,3477.4,3476.4,2.87652]
[1719850208910,0.0625737,3477.3,3476.2,2.87665]
[1719850209115,0.02640986,3477.4,3476.2,2.87665]
[1719850209331,0.0625737,3477.3,3476.4,2.87648]
[1719850209685,0.02640986,3477.4,3476.4,2.87648]
[1719850210178,0.0625701,3477.3,3476.4,2.87648]
[1719850210350,0.02640986,3477.4,3476.5,2.93391133]
[1719850210679,0.0625701,3477.3,3476.5,2.93391133]
[1719850210981,0.0625701,3477.3,3476.6,0.05752129]
[1719850211772,2.2881,3477.5,3476.7,2.87627]
[1719850211977,0.06259666,3477.4,3476.7,2.87627]
[1719850212772,0.08900652,3477.4,3476.5,2.87639]
[1719850213153,0.08900652,3477.4,3476.2,2.437]
[1719850213154,2.3133,3477.3,3476.2,2.437]
[1719850213333,0.08896313,3477.2,3476.3,2.87662]
[1719850213764,0.02640986,3477.2,3476.1,2.87672]
[1719850214359,0.02640986,3477.2,3476.3,2.87661]
[1719850215088,2.4594,3477.1,3475.9,5.86387]
[1719850215288,0.02640986,3477.0,3476.0,2.87682]
[1719850215797,2.2756,3476.9,3475.7,2.87711]
[1719850215950,2.30200986,3476.8,3475.7,2.87711]
[1719850216285,0.08878866,3476.7,3475.8,2.87702]
[1719850216494,0.08878866,3476.7,3475.9,2.8769]
[1719850216648,0.08878866,3476.7,3475.7,2.87705]
[1719850216854,0.0623788,3476.7,3475.9,2.87687]
[1719850217054,2.2756,3476.8,3475.9,2.87687]
[1719850217257,2.2756,3476.8,3476.0,2.87686]
[1719850217450,0.08877669,3476.7,3475.8,2.87697]
[1719850217675,0.08877669,3476.7,3475.9,2.87694]
[1719850217876,0.02640986,3476.7,3475.9,2.87694]
[1719850219617,0.02640986,3476.7,3475.7,2.87708]
[1719850219910,2.3144,3476.6,3475.7,2.87708]
[1719850220812,2.3144,3476.6,3475.4,2.437]
[1719850221116,2.3461,3476.4,3475.5,0.05753765]
[1719850221412,0.06224408,3476.3,3475.5,0.05753765]
[1719850221601,0.06224408,3476.3,3475.4,2.8773]
[1719850221779,2.3461,3476.4,3475.5,2.87726]
[1719850222243,2.3461,3476.4,3475.7,2.87706]
[1719850222525,2.3461,3476.4,3475.8,0.05753315]
[1719850223508,2.3461,3476.4,3475.6,2.437]
[1719850225431,2.3461,3476.4,3475.7,0.0575332]
[1719850226904,0.06215604,3476.3,3475.6,2.437]
[1719850227109,2.4856,3476.2,3475.0,3.0]
[1719850227308,2.4856,3476.2,3474.9,3.14264601]
[1719850227530,2.4856,3476.2,3474.9,2.8777]
[1719850227717,2.4274,3476.0,3474.9,2.8777]
[1719850228045,0.02640986,3475.9,3474.8,5.31484]
[1719850228345,0.06204171,3475.8,3474.9,2.87776]
[1719850228637,0.02640986,3475.9,3474.9,2.87776]
[1719850228937,2.4274,3476.0,3474.9,2.87776]
[1719850229150,0.02640986,3475.9,3474.9,2.87776]
[1719850229305,0.08843975,3475.9,3474.9,2.87776]
[1719850229740,2.2801,3475.8,3474.5,2.87803]
[1719850230043,2.26,3475.6,3474.6,2.87802]
[1719850230243,2.26,3475.6,3474.7,2.87789]
[1719850230543,2.26,3475.6,3474.8,2.87779]
[1719850230946,2.26,3475.6,3474.6,5.75597]
[1719850231245,2.26,3475.6,3474.9,2.87776]
[1719850231458,2.26,3475.6,3474.7,2.87792]
[1719850231613,2.26,3475.6,3474.8,2.87779]
[1719850233315,2.26,3475.6,3474.9,2.87774]
[1719850234017,2.26,3475.6,3474.8,2.87779]
[1719850234422,2.26,3475.6,3475.0,2.87764]
[1719850234621,2.26,3475.6,3475.1,0.05754838]
[1719850234959,2.26,3475.6,3475.2,2.87748]
[1719850236025,2.26,3475.6,3475.3,2.87744]
[1719850236223,2.26,3475.6,3475.1,2.87754]
[1719850236431,2.26,3475.6,3475.0,2.87766]
[1719850236629,2.26,3475.6,3475.1,2.87758]
[1719850237270,2.26,3475.6,3475.2,2.8775]
[1719850237634,2.26,3475.6,3475.0,2.87766]
[1719850238336,2.3532,3475.4,3474.7,2.87793]
[1719850238534,2.3532,3475.4,3474.2,4.7725]
[1719850238740,2.3532,3475.4,3474.7,2.87789]
[1719850239875,2.3532,3475.4,3474.8,2.87782]
[1719850240946,2.3532,3475.4,3474.8,5.75562]
[1719850241145,2.3532,3475.4,3474.8,2.8778]
[1719850242265,2.3532,3475.4,3474.6,2.87798]
[1719850242429,0.02640986,3475.3,3474.4,2.87815]
[1719850242634,2.3532,3475.4,3474.5,2.87809]
[1719850242835,2.3532,3475.4,3474.6,2.87798]
[1719850242836,0.02640986,3475.3,3474.6,2.87798]
[1719850243069,2.263,3475.2,3474.4,2.87815]
[1719850243380,2.263,3475.2,3474.4,2.87812]
[1719850243549,2.263,3475.2,3474.5,2.87809]
[1719850243871,2.263,3475.2,3474.4,2.87817]
[1719850244170,2.263,3475.2,3474.4,2.87819]
[1719850244590,0.02640986,3475.1,3474.2,8.1936]
[1719850244758,0.02640986,3475.1,3474.1,3.26018537]
[1719850245155,0.02640986,3475.1,3474.4,2.87819]
[1719850245397,0.02640986,3475.1,3474.2,2.8783]
[1719850245709,0.02640986,3475.1,3474.4,2.87813]
[1719850245999,0.02640986,3475.1,3474.4,2.87812]
[1719850246357,2.263,3475.2,3474.6,2.87801]
[1719850246764,2.263,3475.2,3474.5,0.05755789]
[1719850246988,2.263,3475.2,3474.4,2.87812]
[1719850248265,0.02640986,3475.1,3474.4,2.87812]
[1719850248468,0.02640986,3475.1,3474.3,2.87827]
[1719850248806,0.02640986,3475.1,3473.1,5.31622]
[1719850248807,2.2841,3475.0,3473.4,12.1179]
[1719850248984,2.31050986,3474.9,3473.9,2.87855]
[1719850249179,2.45200986,3474.8,3473.8,2.87869]
[1719850249396,0.02640986,3474.7,3473.8,2.87869]
[1719850249629,0.02640986,3474.7,3474.0,2.87852]
[1719850249943,2.4256,3474.8,3474.1,2.87838]
[1719850250300,0.09129221,3474.7,3474.3,2.87822]
[1719850250501,2.4256,3474.8,3474.4,2.87819]
[1719850250713,2.4256,3474.8,3474.3,2.87822]
[1719850250913,2.4256,3474.8,3474.4,2.87818]
[1719850251110,0.09125481,3474.7,3474.4,2.87818]
[1719850251543,2.4256,3474.8,3474.4,2.87818]
[1719850251919,0.09126795,3474.7,3474.4,2.87818]
[1719850252114,2.4256,3474.8,3474.4,2.87818]
[1719850252537,0.0912711,3474.7,3474.4,2.87818]
[1719850252839,2.4256,3474.8,3474.4,2.87818]
[1719850253156,0.09125142,3474.6,3474.4,2.87818]
[1719850253302,2.4256,3474.8,3474.4,2.87818]
[1719850253505,0.09123543,3474.5,3474.4,2.87818]
[1719850253744,0.09123543,3474.5,3474.2,2.93584903]
[1719850254056,2.4256,3474.8,3474.3,2.87827]
[1719850254405,2.4256,3474.8,3474.2,0.05755903]
[1719850254644,0.09124937,3474.7,3474.1,5.75678]
[1719850254804,2.4823,3474.6,3473.7,2.87873]
[1719850255006,0.02640986,3474.5,3473.7,2.87873]
[1719850255243,0.02640986,3474.5,3473.9,2.87855]
[1719850255441,0.02640986,3474.5,3473.8,2.87867]
[1719850255643,0.02640986,3474.5,3473.6,2.87878]
[1719850255840,2.3034,3474.4,3473.7,2.87874]
[1719850256048,0.02640986,3474.3,3473.5,2.87887]
[1719850256220,0.02640986,3474.3,3473.6,2.87884]
[1719850256621,0.02640986,3474.3,3473.4,2.87897]
[1719850256806,0.02640986,3474.3,3473.5,2.87892]
[1719850257005,0.02640986,3474.3,3473.7,2.87877]
[1719850257209,0.09111631,3474.2,3473.7,2.87877]
[1719850257623,0.02640986,3474.3,3473.7,2.87877]
[1719850257808,0.09108502,3474.2,3473.9,2.8786]
[1719850258249,2.3034,3474.4,3473.9,2.8786]
[1719850258609,0.09093895,3474.3,3473.9,2.8786]
[1719850259113,0.09093895,3474.3,3473.7,2.93626874]
[1719850259308,0.09093895,3474.3,3473.7,2.8787]
[1719850260084,0.09093895,3474.3,3473.8,2.87863]
[1719850260388,0.09093895,3474.3,3474.1,2.87844]
[1719850260684,0.09093895,3474.3,3473.9,2.87854]
[1719850260891,0.09093895,3474.3,3473.7,2.87871]
[1719850261180,0.09093895,3474.3,3473.5,2.87888]
[1719850261181,2.445,3474.2,3473.5,2.87888]
[1719850261489,0.02640986,3474.1,3473.3,2.87909]
[1719850261703,0.02640986,3474.1,3473.2,2.87914]
[1719850262041,2.445,3474.2,3473.8,2.87868]
[1719850262441,2.445,3474.2,3473.7,0.05756852]
[1719850262673,2.445,3474.2,3473.7,2.93633852]
[1719850263473,2.445,3474.2,3473.7,2.87877]
[1719850263986,2.2655,3474.0,3473.1,2.87919]
[1719850264305,0.02640986,3473.9,3473.2,2.87918]
[1719850265388,0.02640986,3473.9,3473.2,5.75829]
[1719850265557,2.2655,3474.0,3473.2,2.87911]
[1719850265781,0.09079697,3473.8,3473.6,2.87879]
[1719850265972,0.09081297,3473.9,3473.6,2.87879]
[1719850266182,2.2655,3474.0,3473.6,2.87879]
[1719850266386,0.0907825,3473.8,3473.6,2.87879]
[1719850266705,2.2655,3474.0,3473.6,2.87879]
[1719850266849,2.4234,3474.4,3473.8,2.87867]
[1719850267300,2.4234,3474.4,3474.0,2.87847]
[1719850267604,2.4234,3474.4,3473.8,2.93621896]
[1719850267759,2.4234,3474.4,3474.0,2.87847]
[1719850268364,2.4234,3474.4,3474.3,2.87827]
[1719850268548,2.4234,3474.4,3474.1,2.87837]
[1719850268752,2.4234,3474.4,3473.8,2.87866]
[1719850269458,2.4234,3474.4,3474.0,2.87852]
[1719850270001,2.4234,3474.4,3474.1,2.87843]
[1719850270402,2.4234,3474.4,3474.0,2.87852]
[1719850270547,2.4234,3474.4,3474.1,2.87842]
[1719850270747,2.4234,3474.4,3474.2,2.87832]
[1719850271186,2.3504,3475.1,3474.3,2.87827]
[1719850271389,0.02640986,3475.0,3474.3,2.87827]
[1719850271590,0.11748449,3475.0,3474.3,2.87827]
[1719850272176,0.11748449,3475.0,3474.4,2.87819]
[1719850273058,0.11748449,3475.0,3474.2,2.87835]
[1719850273417,0.11748449,3475.0,3474.3,2.87827]
[1719850273595,0.09107463,3475.0,3474.5,2.87809]
[1719850273767,0.09107463,3475.0,3474.3,2.93580148]
[1719850274495,0.09107463,3475.0,3474.3,2.87824]
[1719850274681,0.11748449,3475.0,3474.3,2.87824]
[1719850274868,0.11748449,3475.0,3474.5,2.87806]
[1719850275069,0.11748449,3475.0,3474.3,2.87824]
[1719850275396,0.11748449,3475.0,3474.4,2.87818]
[1719850276208,0.11748449,3475.0,3474.1,2.8784]
[1719850276392,0.11748449,3475.0,3474.3,2.87824]
[1719850276712,0.11748449,3475.0,3473.9,2.437]
[1719850276713,2.4587,3474.9,3473.7,2.8787]
[1719850276876,2.48510986,3474.8,3473.8,2.87869]
[1719850277203,0.02640986,3474.7,3473.9,2.8786]
[1719850277499,0.09071936,3474.6,3473.9,2.8786]
[1719850277667,0.02640986,3474.5,3473.9,2.8786]
[1719850277867,0.09065843,3474.4,3473.9,2.8786]
[1719850278300,0.09065843,3474.4,3474.1,2.87843]
[1719850278474,0.02640986,3474.7,3474.1,2.87843]
[1719850278693,0.09065189,3474.6,3474.1,2.87843]
[1719850279212,0.09065189,3474.6,3474.3,2.87822]
[1719850279419,2.4587,3474.8,3474.5,2.8781]
[1719850280885,2.4587,3474.8,3474.5,2.87805]
[1719850281133,7.48,3475.1,3474.7,2.87794]
[1719850281134,9.8894,3475.1,3474.7,2.87794]
[1719850281421,2.4094,3475.1,3474.8,2.87785]
[1719850282131,2.4094,3475.1,3474.6,2.87796]
[1719850282545,2.4094,3475.1,3474.7,2.87793]
[1719850282841,2.4094,3475.1,3474.9,2.87772]
[1719850283693,2.3616,3475.3,3474.9,2.87772]
[1719850284127,2.3616,3475.3,3474.6,5.37253028]
[1719850284335,2.3616,3475.6,3475.3,2.87744]
[1719850284522,2.3616,3475.6,3475.4,2.87735]
[1719850284731,2.3616,3476.1,3475.5,2.87728]
[1719850284913,2.38800986,3476.1,3475.5,2.87728]
[1719850285118,0.09029268,3476.0,3475.5,2.87728]
[1719850285323,0.09029268,3476.0,3475.3,2.87738]
[1719850285732,0.09029268,3476.0,3475.4,2.87732]
[1719850287163,0.09029268,3476.0,3475.5,2.87727]
[1719850287812,0.09029268,3476.0,3475.7,2.87704]
[1719850289418,0.09029268,3476.0,3475.6,0.05754369]
[1719850289419,0.09029268,3476.0,3475.6,2.93472369]
[1719850289637,0.09043027,3475.9,3475.6,2.93472369]
[1719850289836,2.3616,3476.1,3475.6,2.93472369]
[1719850289837,2.3616,3476.1,3475.7,2.8771]
[1719850290076,2.3616,3476.1,3475.8,2.87698]
[1719850290374,3.02640986,3476.8,3476.0,2.8768]
[1719850290375,2.4367,3476.7,3476.0,2.8768]
[1719850290576,0.02640986,3476.6,3476.0,2.8768]
[1719850290748,0.09058629,3476.6,3476.0,0.05753346]
[1719850290954,0.09058629,3476.6,3476.3,2.87661]
[1719850291266,0.09058629,3476.6,3476.4,2.87653]
[1719850292685,0.09022002,3476.5,3476.3,2.437]
[1719850292840,2.369,3477.1,3476.5,2.87638]
[1719850293235,0.090286,3477.0,3476.5,2.87638]
[1719850294548,0.090286,3477.0,3476.5,0.05752472]
[1719850294772,0.090286,3477.0,3476.7,2.87627]
[1719850297099,0.090286,3477.0,3476.6,2.87636]
[1719850297305,0.090286,3477.0,3476.8,2.87612]
[1719850297601,0.090286,3477.0,3476.4,0.05752263]
[1719850297602,0.090286,3477.0,3476.6,2.87633]
[1719850297755,0.090286,3477.0,3476.6,5.75262]
[1719850298061,0.090286,3477.0,3476.6,2.87629]
[1719850300690,0.090286,3477.0,3476.4,8.18998]
[1719850301005,0.090286,3477.0,3476.4,5.31346]
[1719850301769,0.090286,3477.0,3476.6,2.87637]
[1719850304018,0.090286,3477.0,3476.6,2.93389078]
[1719850304205,0.090286,3477.0,3476.8,2.87614]
[1719850304734,2.2673,3477.4,3476.9,2.87612]
[1719850305412,2.2673,3477.4,3476.9,5.80970632]
[1719850305617,2.2673,3477.4,3476.9,2.93358632]
[1719850305825,2.2673,3477.4,3477.0,2.87603]
[1719850306734,2.3983,3477.9,3477.1,2.93343621]
[1719850306915,2.3983,3477.9,3477.1,2.93342621]
[1719850307432,0.02640986,3477.8,3477.2,2.87587]
[1719850307733,0.02640986,3477.8,3477.0,2.87598]
[1719850308594,0.02640986,3477.8,3477.1,2.87595]
[1719850308816,0.02640986,3477.8,3477.0,2.87596]
[1719850309014,0.02640986,3477.8,3477.0,5.75195]
[1719850309289,0.02640986,3477.8,3477.0,5.75194]
[1719850309489,0.02640986,3477.8,3477.1,2.87595]
[1719850311998,0.02640986,3477.8,3476.9,2.87609]
[1719850312401,2.2634,3477.7,3476.8,2.437]
[1719850312603,0.02640986,3477.6,3476.8,5.3132]
[1719850313137,0.02640986,3477.6,3476.8,2.437]
[1719850316825,0.02640986,3477.6,3476.4,2.437]
[1719850316826,2.4067,3477.5,3476.4,2.437]
[1719850317025,2.4067,3477.3,3476.4,2.437]
[1719850317227,0.02640986,3477.2,3476.2,3.0]
[1719850317911,2.4702,3477.1,3476.0,3.0]
[1719850318147,0.02640986,3477.0,3476.0,3.0]
[1719850318667,2.3206,3476.9,3476.0,3.0]
[1719850318955,0.02640986,3476.8,3476.0,3.0]
[1719850321109,2.3206,3476.9,3476.1,2.87677]
[1719850321314,0.02640986,3476.8,3476.0,3.0]
[1719850321535,0.09030621,3476.7,3475.8,5.31397]
[1719850321952,0.02640986,3476.8,3476.0,2.87682]
[1719850322154,0.02640986,3476.8,3476.1,2.87672]
[1719850322320,0.02640986,3476.8,3476.0,2.87682]
[1719850323247,0.02640986,3476.8,3476.1,2.87676]
[1719850323723,2.3206,3476.9,3476.3,2.87655]
[1719850324128,0.0902938,3476.8,3476.3,2.87655]
[1719850324778,2.3206,3476.9,3476.3,2.87655]
[1719850324964,2.3206,3476.9,3476.4,2.87653]
[1719850325165,0.0902938,3476.8,3476.4,0.05752913]
[1719850325316,0.0902938,3476.8,3476.7,5.75252]
[1719850325511,2.4244,3477.2,3476.8,2.87613]
[1719850325717,0.09035759,3477.1,3476.9,2.87607]
[1719850326049,0.09035759,3477.1,3477.0,2.87604]
[1719850326353,0.09035759,3477.1,3476.9,2.87607]
[1719850326670,0.09035759,3477.1,3476.9,5.75211]
[1719850327033,0.09035759,3477.1,3476.9,2.87604]
[1719850327715,0.09035759,3477.1,3477.0,2.87604]
[1719850328783,0.09035759,3477.1,3477.0,5.75208]
[1719850329249,2.43550986,3477.6,3477.1,2.87589]
[1719850329636,2.4091,3477.6,3477.1,2.87589]
[1719850330674,2.4091,3477.6,3477.3,2.87573]
[1719850331967,2.4091,3477.6,3477.4,2.8757]
[1719850332339,2.406463,3477.6,3477.4,2.8757]
[1719850332775,0.09054003,3477.5,3477.4,2.8757]
[1719850334369,0.09054003,3477.5,3477.2,2.87587]
[1719850334686,0.09054003,3477.5,3476.3,2.87657]
[1719850334687,0.11694989,3477.5,3476.8,2.87617]
[1719850335044,0.02640986,3477.5,3476.8,2.87617]
[1719850335543,0.02640986,3477.5,3477.0,2.87602]
[1719850337876,2.406463,3477.6,3477.2,2.87582]
[1719850338234,0.02640986,3477.5,3476.9,2.87612]
[1719850339060,0.02640986,3477.5,3476.7,2.87628]
[1719850339279,2.4114,3477.4,3476.7,2.87628]
[1719850339582,0.02640986,3477.3,3476.5,2.87641]
[1719850340080,0.02640986,3477.3,3476.7,1.015]
[1719850340237,0.02640986,3477.3,3476.6,2.87637]
[1719850340441,0.02640986,3477.3,3476.7,2.87627]
[1719850340680,0.02640986,3477.3,3476.7,3.89127]
[1719850341048,0.02640986,3477.3,3476.6,1.015]
[1719850341456,0.02640986,3477.3,3476.7,2.87628]
[1719850341656,0.02640986,3477.3,3476.9,2.8761]
[1719850341881,2.4114,3477.4,3476.9,3.8911]
[1719850342249,0.02640986,3477.3,3476.9,3.8911]
[1719850343181,2.4114,3477.4,3476.9,3.89106]
[1719850343392,2.4114,3477.4,3477.1,3.89089]
[1719850344164,0.09051164,3477.3,3477.1,3.89089]
[1719850345071,0.09051164,3477.3,3477.2,2.87587]
[1719850345385,0.09051164,3477.3,3477.1,1.015]
[1719850345758,0.09051164,3477.3,3477.1,3.89094]
[1719850347201,0.09051164,3477.3,3477.2,2.87587]
[1719850347773,0.02640986,3477.7,3477.2,2.87587]
[1719850348080,0.02640986,3477.7,3477.3,1.015]
[1719850348291,0.08292781,3477.6,3477.3,3.89075]
[1719850348682,0.08292781,3477.6,3477.5,1.015]
[1719850349050,2.2871,3477.8,3477.5,1.015]
[1719850349256,0.09036932,3477.6,3477.4,2.8757]
[1719850349455,2.2871,3477.8,3477.5,1.015]
[1719850349697,2.2871,3477.8,3477.7,1.015]
[1719850350459,2.4943,3478.1,3477.7,1.015]
[1719850350799,0.02640986,3478.0,3477.7,1.015]
[1719850350960,0.02640986,3478.0,3477.9,1.015]
[1719850351159,2.52070986,3478.1,3477.9,1.015]
[1719850351561,2.4943,3478.1,3477.9,3.89022]
[1719850351877,4.3226,3478.4,3477.9,3.89022]
[1719850352087,2.4626,3478.2,3477.1,2.87594]
[1719850352256,2.4626,3478.0,3477.5,1.015]
[1719850352594,0.02640986,3477.9,3477.5,1.015]
[1719850352897,0.02640986,3477.9,3476.9,2.87611]
[1719850353098,0.02640986,3477.9,3477.4,1.015]
[1719850353756,2.57984907,3477.8,3476.6,2.87634]
[1719850353990,2.57984907,3477.8,3476.4,2.87651]
[1719850353991,2.4894,3477.6,3476.9,1.015]
[1719850354207,0.02640986,3477.5,3476.9,1.015]
[1719850354355,0.02640986,3477.5,3477.1,1.015]
[1719850354356,0.11677852,3477.5,3477.1,1.015]
[1719850355094,2.3477,3477.4,3476.4,2.87652]
[1719850355259,0.02640986,3477.3,3476.9,1.015]
[1719850355595,0.02640986,3477.3,3476.4,2.87652]
[1719850355596,0.09032075,3477.2,3477.1,1.015]
[1719850356095,0.02640986,3477.3,3476.6,2.87637]
[1719850356256,0.09031667,3477.2,3476.6,2.87637]
[1719850356457,0.02640986,3477.3,3476.6,2.87637]
[1719850356713,0.02640986,3477.3,3476.7,2.87628]
[1719850357193,2.3477,3477.4,3476.8,5.31214]
[1719850357505,2.2825,3478.0,3476.8,5.31214]
[1719850357878,0.11678699,3477.9,3476.8,5.31214]
[1719850358776,0.11678699,3477.9,3476.9,2.87609]
[1719850360603,0.11678699,3477.9,3477.0,2.87598]
[1719850362330,0.11678699,3477.9,3477.1,2.87594]
[1719850364265,0.11678699,3477.9,3477.0,2.87601]
[1719850364717,0.11678699,3477.9,3477.1,2.87593]
[1719850364879,0.11678699,3477.9,3477.0,2.87602]
[1719850365270,0.11678699,3477.9,3476.7,5.17518]
[1719850365271,2.4628,3477.8,3476.7,5.17518]
[1719850365471,0.02640986,3477.7,3476.7,2.87628]
[1719850366314,0.09036057,3477.6,3476.7,2.87628]
[1719850366626,0.02640986,3477.5,3476.7,2.87628]
[1719850367390,0.02640986,3477.7,3476.7,2.87628]
[1719850367797,0.09036057,3477.6,3476.7,2.87628]
[1719850368000,0.02640986,3477.5,3476.7,2.87628]
[1719850368622,0.02640986,3477.5,3476.5,2.87644]
[1719850368835,2.4487,3477.4,3476.4,2.4117]
[1719850368984,0.02640986,3477.3,3476.3,2.87659]
[1719850369173,0.11670841,3477.3,3476.3,2.87659]
[1719850369388,0.02640986,3477.2,3476.3,2.87659]
[1719850370074,0.09017226,3477.1,3476.3,2.87659]
[1719850370685,0.02640986,3477.0,3476.1,5.31015]
[1719850371011,2.4516,3476.9,3476.1,5.31015]
[1719850371193,0.02640986,3476.8,3476.1,5.31015]
[1719850371719,0.02640986,3476.8,3476.1,2.87675]
[1719850374640,0.02640986,3476.8,3475.9,2.87694]
[1719850374863,0.02640986,3476.8,3475.8,5.20962]
[1719850376324,0.02640986,3476.8,3475.9,2.87695]
[1719850378031,2.3587,3476.7,3475.7,2.87711]
[1719850378219,0.02640986,3476.6,3475.9,1.015]
[1719850378929,0.0899681,3476.5,3475.9,1.015]
[1719850379135,0.0899681,3476.5,3475.8,1.015]
[1719850379898,0.0899681,3476.5,3475.7,2.87711]
[1719850379899,0.0899681,3476.5,3476.0,1.015]
[1719850382005,0.0899681,3476.5,3476.1,0.05752936]
[1719850382204,0.0899681,3476.5,3476.4,1.015]
[1719850382509,2.3201,3477.0,3476.4,1.015]
[1719850382718,2.3201,3477.0,3476.5,0.05752805]
[1719850382911,2.32110986,3477.3,3476.5,2.93392805]
[1719850383219,2.32110986,3477.3,3476.5,3.94892805]
[1719850383399,0.09012566,3477.2,3477.1,1.015]
[1719850383599,0.09012566,3477.2,3476.5,0.05752805]
[1719850383600,0.09012566,3477.2,3476.7,1.015]
[1719850383840,2.2947,3477.3,3476.7,1.015]
[1719850384014,0.0901121,3477.1,3476.7,3.89128]
[1719850384198,0.09013363,3477.2,3476.7,3.89128]
[1719850384399,0.09009613,3477.0,3476.7,3.89128]
[1719850384745,0.09008571,3476.9,3476.7,3.89128]
[1719850385012,2.2947,3477.3,3476.9,2.87611]
[1719850385167,2.41460986,3477.6,3476.9,2.87611]
[1719850385491,0.0902249,3477.5,3476.7,3.89128]
[1719850385706,0.11663476,3477.5,3476.8,2.87615]
[1719850386356,0.11663476,3477.5,3476.7,1.07251987]
[1719850386357,0.0902249,3477.5,3477.4,1.015]
[1719850387776,0.0902249,3477.5,3476.9,0.05751939]
[1719850387777,0.0902249,3477.5,3477.2,1.015]
[1719850388157,0.11663476,3477.5,3477.2,1.015]
[1719850390004,0.11663476,3477.5,3476.8,2.87615]
[1719850390005,0.11663476,3477.5,3476.9,1.015]
[1719850390758,0.11663476,3477.5,3476.6,2.87637]
[1719850390759,0.11663476,3477.5,3477.1,1.015]
[1719850390959,2.3322,3477.4,3476.9,1.015]
[1719850391161,0.0872114,3477.3,3477.2,2.87587]
[1719850391386,3.0,3478.0,3477.2,2.87587]
[1719850391387,2.49460986,3478.0,3477.4,2.8757]
[1719850391630,2.4682,3478.0,3477.5,2.87562]
[1719850391904,2.4682,3478.0,3477.3,2.9332906]
[1719850391905,2.4682,3478.0,3477.9,1.015]
[1719850392271,2.30610986,3478.3,3477.9,1.015]
[1719850392467,2.2797,3478.3,3478.2,1.015]
[1719850392806,2.2797,3478.3,3477.4,2.87565]
[1719850393003,2.2797,3478.3,3477.2,2.87582]
[1719850393209,2.2797,3478.3,3477.7,1.015]
[1719850393576,2.2797,3478.3,3477.2,2.87582]
[1719850393781,2.2797,3478.3,3477.1,2.87595]
[1719850394301,2.2797,3478.3,3477.2,2.87587]
[1719850394489,0.02640986,3478.2,3477.2,2.87587]
[1719850394694,2.2897,3478.1,3477.2,2.87587]
[1719850394915,0.02640986,3478.0,3477.2,2.87587]
[1719850395807,0.02640986,3478.0,3477.0,2.87599]
[1719850396513,0.02640986,3478.0,3477.2,2.87586]
[1719850396676,0.02640986,3478.0,3477.3,2.87578]
[1719850396875,0.08735209,3477.9,3477.3,2.87578]
[1719850397113,0.02640986,3477.8,3477.3,2.87578]
[1719850397426,0.08732016,3477.7,3477.4,2.87571]
[1719850397770,0.02640986,3478.0,3477.4,2.87571]
[1719850397977,0.08735209,3477.9,3477.4,2.87571]
[1719850398414,0.08735209,3477.9,3477.2,0.057514]
[1719850398415,0.08735209,3477.9,3477.5,2.87562]
[1719850398913,0.02640986,3478.0,3477.5,2.87562]
[1719850399293,0.02640986,3478.0,3477.1,2.435]
[1719850399294,2.2897,3478.1,3477.6,2.87551]
[1719850399682,0.08736251,3478.0,3477.6,2.87551]
[1719850400212,0.08736251,3478.0,3477.7,2.87546]
[1719850400604,0.08736251,3478.0,3477.5,2.87562]
[1719850400914,2.2897,3478.1,3477.6,2.87554]
[1719850401723,0.02640986,3478.0,3477.6,2.87554]
[1719850402017,0.02640986,3478.0,3477.2,2.87587]
[1719850402430,0.02640986,3478.0,3477.2,2.87586]
[1719850402980,0.02640986,3478.0,3477.1,2.435]
[1719850403179,2.293,3477.9,3477.0,2.87598]
[1719850403375,0.11379865,3477.8,3476.7,5.31127]
[1719850403581,2.49280986,3477.7,3476.7,2.87627]
[1719850403808,0.08735804,3477.6,3476.7,2.87627]
[1719850404003,0.02640986,3477.5,3476.7,2.87627]
[1719850405110,0.02640986,3477.5,3476.8,2.87618]
[1719850405548,0.08437947,3477.4,3476.8,2.87618]
[1719850405735,0.08437947,3477.4,3476.7,2.87627]
[1719850406246,0.02640986,3477.5,3476.7,2.87627]
[1719850406613,0.02640986,3477.5,3476.8,2.87619]
[1719850406926,0.08437947,3477.4,3476.8,2.87619]
[1719850407549,0.08437947,3477.4,3476.9,2.87611]
[1719850407915,0.08437947,3477.4,3477.2,2.87582]
[1719850408253,2.4664,3477.7,3477.2,2.87582]
[1719850408753,0.08434704,3477.6,3477.2,2.87582]
[1719850409048,2.4664,3477.7,3477.2,2.87582]
[1719850409250,0.08432551,3477.5,3477.2,2.87582]
[1719850409449,2.4664,3477.7,3477.3,2.87579]
[1719850410317,0.08440113,3478.1,3477.4,2.87568]
[1719850410519,0.02640986,3478.0,3477.5,2.87562]
[1719850410946,0.08434815,3477.9,3477.5,2.87562]
[1719850411670,0.08435323,3477.8,3477.5,2.87562]
[1719850411871,2.49,3478.2,3477.5,2.87562]
[1719850412079,0.08433726,3477.7,3477.5,2.87562]